[Event "Titled Tuesday Blitz May 9 Early 2023"]
[White "Spaqi, Wilson"]
[Black "Kiseleva, Arina"]
[WhiteFideId "2053888"]
[BlackFideId "4164989"]
[WhiteElo "2437"]
[BlackElo "1708"]
[Result "0-1"]
[Round "02"]
[TimeControl "180+2"]
[Date "2023.05.09"]
[WhiteClock "0:01:02"]
[BlackClock "0:00:10"]

1. d4 {[%clk 0:03:00]}  Nf6 {[%clk 0:02:58]} 2. Bf4 {[%clk 0:03:00]}  e6 {[%clk 0:02:57]} 3. e3 {[%clk 0:03:00]}  c5 {[%clk 0:02:55]} 4. c3 {[%clk 0:03:00]}  Nc6 {[%clk 0:02:54]} 5. Nd2 {[%clk 0:02:59]}  d5 {[%clk 0:02:54]} 6. Bd3 {[%clk 0:02:58]}  Bd6 {[%clk 0:02:52]} 7. Bxd6 {[%clk 0:02:55]}  Qxd6 {[%clk 0:02:53]} 8. f4 {[%clk 0:02:56]}  O-O {[%clk 0:02:51]} 9. g3 {[%clk 0:02:56]}  a5 {[%clk 0:02:45]} 10. a4 {[%clk 0:02:55]}  b6 {[%clk 0:02:45]} 11. Qe2 {[%clk 0:02:53]}  Ne8 {[%clk 0:02:34]} 12. Ngf3 {[%clk 0:02:53]}  Nc7 {[%clk 0:02:32]} 13. Bxh7+ {[%clk 0:02:51]}  Kxh7 {[%clk 0:02:11]} 14. Ng5+ {[%clk 0:02:51]}  Kg6 {[%clk 0:02:10]} 15. Qg4 {[%clk 0:02:24]}  e5 {[%clk 0:01:32]} 16. Qh4 {[%clk 0:02:18]}  exd4 {[%clk 0:01:26]} 17. e4 {[%clk 0:02:01]}  dxc3 {[%clk 0:01:09]} 18. bxc3 {[%clk 0:02:02]}  f5 {[%clk 0:00:43]} 19. e5 {[%clk 0:01:40]}  Nxe5 {[%clk 0:00:43]} 20. O-O {[%clk 0:01:40]}  Nf7 {[%clk 0:00:27]} 21. Ndf3 {[%clk 0:01:37]}  Be6 {[%clk 0:00:22]} 22. Qh3 {[%clk 0:01:26]}  Rh8 {[%clk 0:00:21]} 23. Qg2 {[%clk 0:01:26]}  Nxg5 {[%clk 0:00:20]} 24. Nxg5 {[%clk 0:01:26]}  d4 {[%clk 0:00:19]} 25. Rad1 {[%clk 0:01:21]}  Bd5 {[%clk 0:00:19]} 26. Rfe1 {[%clk 0:01:22]}  Bxg2 {[%clk 0:00:18]} 27. Kxg2 {[%clk 0:01:22]}  Qc6+ {[%clk 0:00:17]} 28. Kg1 {[%clk 0:01:23]}  Rae8 {[%clk 0:00:17]} 29. Rf1 {[%clk 0:01:22]}  Re2 {[%clk 0:00:13]} 30. Nf3 {[%clk 0:01:22]}  Rhxh2 {[%clk 0:00:11]} 31. Ne5+ {[%clk 0:01:05]}  Rxe5 {[%clk 0:00:11]} 32. Kxh2 {[%clk 0:01:06]}  Re2+ {[%clk 0:00:10]} 33. Kh3 {[%clk 0:01:02]}  Qg2+ {[%clk 0:00:10]} 0-1


[Site "https://www.chess.com"]

[Event "Titled Tuesday Blitz May 9 Early 2023"]
[White "Putri, Regita Desyari"]
[Black "sebastianmarinp"]
[WhiteFideId "7109083"]
[WhiteElo "1930"]
[BlackElo "2436"]
[Result "0-1"]
[Round "02"]
[TimeControl "180+2"]
[Date "2023.05.09"]
[WhiteClock "0:00:00"]
[BlackClock "0:00:59"]

1. e4 {[%clk 0:02:59]}  e5 {[%clk 0:02:59]} 2. Nf3 {[%clk 0:02:59]}  Nc6 {[%clk 0:02:59]} 3. Bb5 {[%clk 0:02:59]}  a6 {[%clk 0:02:59]} 4. Ba4 {[%clk 0:02:59]}  Nf6 {[%clk 0:02:59]} 5. O-O {[%clk 0:02:59]}  b5 {[%clk 0:02:59]} 6. Bb3 {[%clk 0:02:59]}  Bb7 {[%clk 0:03:00]} 7. Re1 {[%clk 0:02:47]}  Bc5 {[%clk 0:03:00]} 8. h3 {[%clk 0:02:41]}  d6 {[%clk 0:02:53]} 9. c3 {[%clk 0:02:40]}  h6 {[%clk 0:02:48]} 10. d4 {[%clk 0:02:27]}  Bb6 {[%clk 0:02:48]} 11. a4 {[%clk 0:02:20]}  O-O {[%clk 0:02:42]} 12. Na3 {[%clk 0:01:42]}  Ne7 {[%clk 0:02:11]} 13. Bc2 {[%clk 0:01:33]}  Ng6 {[%clk 0:02:01]} 14. d5 {[%clk 0:01:19]}  c6 {[%clk 0:01:54]} 15. dxc6 {[%clk 0:01:13]}  Bxc6 {[%clk 0:01:55]} 16. Be3 {[%clk 0:01:13]}  Bxe3 {[%clk 0:01:35]} 17. Rxe3 {[%clk 0:01:14]}  Nf4 {[%clk 0:01:35]} 18. axb5 {[%clk 0:00:58]}  axb5 {[%clk 0:01:36]} 19. Kh2 {[%clk 0:00:58]}  Qe7 {[%clk 0:01:34]} 20. g3 {[%clk 0:00:58]}  Ne6 {[%clk 0:01:25]} 21. Nh4 {[%clk 0:00:50]}  g6 {[%clk 0:01:22]} 22. Ng2 {[%clk 0:00:49]}  Nc5 {[%clk 0:01:20]} 23. Qe2 {[%clk 0:00:44]}  Qb7 {[%clk 0:01:14]} 24. f3 {[%clk 0:00:38]}  b4 {[%clk 0:01:14]} 25. Nc4 {[%clk 0:00:37]}  Rxa1 {[%clk 0:01:11]} 26. Nxd6 {[%clk 0:00:35]}  Qe7 {[%clk 0:01:07]} 27. Nc4 {[%clk 0:00:00]}  b3 {[%clk 0:00:59]} 0-1


[Site "https://www.chess.com"]

[Event "Titled Tuesday Blitz May 9 Early 2023"]
[White "Kiseljova, Marya"]
[Black "Aakanksha Hagawane"]
[WhiteFideId "4155009"]
[BlackFideId "25014510"]
[WhiteElo "1831"]
[BlackElo "2081"]
[Result "0-1"]
[Round "02"]
[TimeControl "180+2"]
[Date "2023.05.09"]
[WhiteClock "0:00:00"]
[BlackClock "0:00:42"]

1. d4 {[%clk 0:03:00]}  Nf6 {[%clk 0:02:59]} 2. c4 {[%clk 0:03:00]}  c5 {[%clk 0:02:55]} 3. d5 {[%clk 0:02:59]}  e6 {[%clk 0:02:56]} 4. Nc3 {[%clk 0:02:57]}  exd5 {[%clk 0:02:54]} 5. cxd5 {[%clk 0:02:58]}  d6 {[%clk 0:02:54]} 6. e4 {[%clk 0:02:58]}  g6 {[%clk 0:02:54]} 7. Nf3 {[%clk 0:02:59]}  Bg7 {[%clk 0:02:55]} 8. Be3 {[%clk 0:02:59]}  O-O {[%clk 0:02:53]} 9. h3 {[%clk 0:02:52]}  Re8 {[%clk 0:02:37]} 10. Bb5 {[%clk 0:02:48]}  Bd7 {[%clk 0:02:33]} 11. Bd3 {[%clk 0:02:10]}  b5 {[%clk 0:02:30]} 12. e5 {[%clk 0:02:06]}  dxe5 {[%clk 0:02:13]} 13. Bxb5 {[%clk 0:01:56]}  Bxb5 {[%clk 0:01:58]} 14. Nxb5 {[%clk 0:01:56]}  e4 {[%clk 0:01:55]} 15. Nd2 {[%clk 0:01:28]}  Nxd5 {[%clk 0:01:51]} 16. Bxc5 {[%clk 0:01:28]}  e3 {[%clk 0:01:47]} 17. Nb3 {[%clk 0:00:58]}  exf2+ {[%clk 0:01:34]} 18. Kxf2 {[%clk 0:00:59]}  Qh4+ {[%clk 0:01:17]} 19. g3 {[%clk 0:00:58]}  Qf6+ {[%clk 0:01:16]} 20. Kg2 {[%clk 0:00:51]}  Qxb2+ {[%clk 0:01:12]} 21. Qd2 {[%clk 0:00:43]}  Re2+ {[%clk 0:01:10]} 22. Kf3 {[%clk 0:00:36]}  Rxd2 {[%clk 0:01:10]} 23. Nxd2 {[%clk 0:00:37]}  Qxd2 {[%clk 0:01:09]} 24. Rad1 {[%clk 0:00:35]}  Qxa2 {[%clk 0:01:06]} 25. Nc7 {[%clk 0:00:21]}  Qb3+ {[%clk 0:00:54]} 26. Ke4 {[%clk 0:00:16]}  Qc4+ {[%clk 0:00:49]} 27. Rd4 {[%clk 0:00:07]}  Bxd4 {[%clk 0:00:46]} 28. Bxd4 {[%clk 0:00:07]}  Nxc7 {[%clk 0:00:43]} 29. Rb1 {[%clk 0:00:00]}  Qc2+ {[%clk 0:00:42]} 0-1


[Site "https://www.chess.com"]

[Event "Titled Tuesday Blitz May 9 Early 2023"]
[White "Deepak, Katiyar"]
[Black "Urbina Perez, Juan Antonio"]
[WhiteFideId "5026792"]
[BlackFideId "2217368"]
[WhiteElo "2069"]
[BlackElo "2197"]
[Result "0-1"]
[Round "02"]
[TimeControl "180+2"]
[Date "2023.05.09"]
[WhiteClock "0:00:00"]
[BlackClock "0:00:47"]

1. Nf3 {[%clk 0:03:00]}  d5 {[%clk 0:02:59]} 2. g3 {[%clk 0:02:59]}  c6 {[%clk 0:02:57]} 3. Bg2 {[%clk 0:02:59]}  Bg4 {[%clk 0:02:58]} 4. O-O {[%clk 0:02:57]}  e6 {[%clk 0:02:57]} 5. d3 {[%clk 0:02:58]}  Nd7 {[%clk 0:02:56]} 6. Nbd2 {[%clk 0:02:57]}  Ngf6 {[%clk 0:02:56]} 7. h3 {[%clk 0:02:54]}  Bh5 {[%clk 0:02:56]} 8. e4 {[%clk 0:02:54]}  e5 {[%clk 0:02:40]} 9. Re1 {[%clk 0:02:52]}  dxe4 {[%clk 0:02:28]} 10. dxe4 {[%clk 0:02:44]}  Bc5 {[%clk 0:02:23]} 11. c3 {[%clk 0:02:23]}  O-O {[%clk 0:02:22]} 12. Nc4 {[%clk 0:02:22]}  Re8 {[%clk 0:02:18]} 13. Bg5 {[%clk 0:02:06]}  Qc7 {[%clk 0:02:13]} 14. Qc2 {[%clk 0:01:58]}  h6 {[%clk 0:02:05]} 15. Be3 {[%clk 0:01:48]}  Bxe3 {[%clk 0:01:54]} 16. Nxe3 {[%clk 0:01:48]}  Bg6 {[%clk 0:01:54]} 17. Nf5 {[%clk 0:01:46]}  Bxf5 {[%clk 0:01:49]} 18. exf5 {[%clk 0:01:45]}  Rad8 {[%clk 0:01:49]} 19. Rad1 {[%clk 0:01:38]}  Qa5 {[%clk 0:01:43]} 20. Qb3 {[%clk 0:01:14]}  Nc5 {[%clk 0:01:32]} 21. Qc4 {[%clk 0:01:14]}  e4 {[%clk 0:01:27]} 22. b4 {[%clk 0:00:42]}  Qa4 {[%clk 0:01:18]} 23. Rxd8 {[%clk 0:00:37]}  Rxd8 {[%clk 0:01:19]} 24. Qxc5 {[%clk 0:00:21]}  exf3 {[%clk 0:01:19]} 25. Bxf3 {[%clk 0:00:21]}  Qxa2 {[%clk 0:01:18]} 26. Rd1 {[%clk 0:00:17]}  Rxd1+ {[%clk 0:01:15]} 27. Bxd1 {[%clk 0:00:17]}  Qb1 {[%clk 0:01:11]} 28. Qd4 {[%clk 0:00:17]}  Ne4 {[%clk 0:01:10]} 29. Kg2 {[%clk 0:00:13]}  Nxc3 {[%clk 0:01:07]} 30. Qxc3 {[%clk 0:00:07]}  Qxd1 {[%clk 0:01:07]} 31. Qe3 {[%clk 0:00:06]}  Qd5+ {[%clk 0:01:05]} 32. Kh2 {[%clk 0:00:06]}  Qxf5 {[%clk 0:01:04]} 33. Qxa7 {[%clk 0:00:04]}  Qd7 {[%clk 0:00:58]} 34. Qb8+ {[%clk 0:00:03]}  Kh7 {[%clk 0:00:58]} 35. Qf4 {[%clk 0:00:03]}  g6 {[%clk 0:00:55]} 36. Qc4 {[%clk 0:00:02]}  Qd5 {[%clk 0:00:54]} 37. Qe2 {[%clk 0:00:00]}  b5 {[%clk 0:00:47]} 0-1


[Site "https://www.chess.com"]

[Event "Titled Tuesday Blitz May 9 Early 2023"]
[White "Pinto, Daniel"]
[Black "Paiva, Henrique M A Albergaria"]
[WhiteFideId "3303144"]
[BlackFideId "1920995"]
[WhiteElo "2145"]
[BlackElo "2007"]
[Result "1-0"]
[Round "02"]
[TimeControl "180+2"]
[Date "2023.05.09"]
[WhiteClock "0:01:24"]
[BlackClock "0:00:00"]

1. e4 {[%clk 0:03:00]}  c5 {[%clk 0:02:57]} 2. Nf3 {[%clk 0:03:01]}  d6 {[%clk 0:02:57]} 3. c3 {[%clk 0:03:00]}  Nf6 {[%clk 0:02:51]} 4. Be2 {[%clk 0:02:59]}  Bg4 {[%clk 0:02:46]} 5. O-O {[%clk 0:02:54]}  Nc6 {[%clk 0:02:46]} 6. d4 {[%clk 0:02:50]}  cxd4 {[%clk 0:02:45]} 7. cxd4 {[%clk 0:02:51]}  e6 {[%clk 0:02:46]} 8. d5 {[%clk 0:02:47]}  Nb8 {[%clk 0:02:43]} 9. Bb5+ {[%clk 0:02:15]}  Nbd7 {[%clk 0:02:00]} 10. dxe6 {[%clk 0:02:13]}  Bxe6 {[%clk 0:01:58]} 11. Nd4 {[%clk 0:02:01]}  Be7 {[%clk 0:01:56]} 12. Nxe6 {[%clk 0:01:59]}  fxe6 {[%clk 0:01:56]} 13. Nc3 {[%clk 0:01:51]}  O-O {[%clk 0:01:36]} 14. Bc4 {[%clk 0:01:47]}  Nc5 {[%clk 0:01:34]} 15. Qe2 {[%clk 0:01:36]}  d5 {[%clk 0:01:17]} 16. exd5 {[%clk 0:01:33]}  exd5 {[%clk 0:01:06]} 17. Rd1 {[%clk 0:01:26]}  Re8 {[%clk 0:01:05]} 18. Nxd5 {[%clk 0:01:24]}  Nxd5 {[%clk 0:00:00]} 19. Rxd5 {[%clk 0:01:24]} 1-0


[Site "https://www.chess.com"]

[Event "Titled Tuesday Blitz May 9 Early 2023"]
[White "feuervogel1000000"]
[Black "Dahlgren, James Allen"]
[BlackFideId "22256873"]
[WhiteElo "2432"]
[BlackElo "2187"]
[Result "1-0"]
[Round "02"]
[TimeControl "180+2"]
[Date "2023.05.09"]
[WhiteClock "0:02:39"]
[BlackClock "0:02:37"]

1. e4 {[%clk 0:03:00]}  e6 {[%clk 0:02:59]} 2. d4 {[%clk 0:03:00]}  c5 {[%clk 0:03:00]} 3. d5 {[%clk 0:03:00]}  exd5 {[%clk 0:03:00]} 4. exd5 {[%clk 0:03:01]}  d6 {[%clk 0:03:00]} 5. Nc3 {[%clk 0:03:00]}  f5 {[%clk 0:03:01]} 6. Nf3 {[%clk 0:02:58]}  Nf6 {[%clk 0:03:02]} 7. Ng5 {[%clk 0:02:49]}  Be7 {[%clk 0:02:56]} 8. Bb5+ {[%clk 0:02:48]}  Kf8 {[%clk 0:02:51]} 9. Qe2 {[%clk 0:02:45]}  a6 {[%clk 0:02:50]} 10. Bd3 {[%clk 0:02:45]}  b5 {[%clk 0:02:48]} 11. Ne6+ {[%clk 0:02:45]}  Bxe6 {[%clk 0:02:46]} 12. Qxe6 {[%clk 0:02:45]}  g6 {[%clk 0:02:43]} 13. Bh6+ {[%clk 0:02:44]}  Ke8 {[%clk 0:02:37]} 14. Bg7 {[%clk 0:02:39]} 1-0


[Site "https://www.chess.com"]

[Event "Titled Tuesday Blitz May 9 Early 2023"]
[White "Ciuffoletti, Paolo"]
[Black "Fernandez Garcia, Gumersindo"]
[WhiteFideId "807630"]
[BlackFideId "24516740"]
[WhiteElo "2143"]
[BlackElo "2093"]
[Result "0-1"]
[Round "02"]
[TimeControl "180+2"]
[Date "2023.05.09"]
[WhiteClock "0:00:12"]
[BlackClock "0:00:21"]

1. e4 {[%clk 0:03:00]}  c5 {[%clk 0:02:59]} 2. d4 {[%clk 0:02:56]}  cxd4 {[%clk 0:02:58]} 3. c3 {[%clk 0:02:56]}  dxc3 {[%clk 0:02:54]} 4. Nxc3 {[%clk 0:02:57]}  Nc6 {[%clk 0:02:54]} 5. Nf3 {[%clk 0:02:57]}  e6 {[%clk 0:02:54]} 6. Bc4 {[%clk 0:02:57]}  Nf6 {[%clk 0:02:55]} 7. O-O {[%clk 0:02:50]}  Qc7 {[%clk 0:02:55]} 8. h3 {[%clk 0:02:41]}  h5 {[%clk 0:02:46]} 9. Qe2 {[%clk 0:02:36]}  Ng4 {[%clk 0:02:44]} 10. g3 {[%clk 0:01:51]}  Nce5 {[%clk 0:02:18]} 11. Nxe5 {[%clk 0:01:41]}  Nxe5 {[%clk 0:02:16]} 12. Bb3 {[%clk 0:01:37]}  h4 {[%clk 0:02:11]} 13. Bf4 {[%clk 0:01:35]}  hxg3 {[%clk 0:02:05]} 14. Bxg3 {[%clk 0:01:30]}  Bc5 {[%clk 0:01:56]} 15. Nb5 {[%clk 0:01:23]}  Qb8 {[%clk 0:01:55]} 16. Rac1 {[%clk 0:01:12]}  b6 {[%clk 0:01:51]} 17. Rfd1 {[%clk 0:01:07]}  Rxh3 {[%clk 0:01:42]} 18. Rxc5 {[%clk 0:01:04]}  Rxg3+ {[%clk 0:01:34]} 19. fxg3 {[%clk 0:01:01]}  bxc5 {[%clk 0:01:35]} 20. Nd6+ {[%clk 0:00:50]}  Ke7 {[%clk 0:01:29]} 21. Qh5 {[%clk 0:00:49]}  Qxd6 {[%clk 0:01:07]} 22. Rxd6 {[%clk 0:00:44]}  Kxd6 {[%clk 0:01:07]} 23. Qh8 {[%clk 0:00:42]}  Bb7 {[%clk 0:00:55]} 24. Qxg7 {[%clk 0:00:42]}  Bxe4 {[%clk 0:00:52]} 25. Qf6 {[%clk 0:00:35]}  c4 {[%clk 0:00:47]} 26. Qf4 {[%clk 0:00:30]}  Bd5 {[%clk 0:00:42]} 27. Bc2 {[%clk 0:00:28]}  Rh8 {[%clk 0:00:41]} 28. Be4 {[%clk 0:00:27]}  Rg8 {[%clk 0:00:25]} 29. Bxd5 {[%clk 0:00:26]}  Kxd5 {[%clk 0:00:26]} 30. a4 {[%clk 0:00:23]}  f5 {[%clk 0:00:25]} 31. Qf2 {[%clk 0:00:23]}  Nd3 {[%clk 0:00:21]} 32. Qxa7 {[%clk 0:00:20]}  Rxg3+ {[%clk 0:00:21]} 33. Kf1 {[%clk 0:00:19]}  Rf3+ {[%clk 0:00:20]} 34. Ke2 {[%clk 0:00:18]}  Rf2+ {[%clk 0:00:21]} 35. Qxf2 {[%clk 0:00:18]}  Nxf2 {[%clk 0:00:21]} 36. Kxf2 {[%clk 0:00:18]}  Kc5 {[%clk 0:00:21]} 37. Ke3 {[%clk 0:00:12]}  d5 {[%clk 0:00:21]} 0-1


[Site "https://www.chess.com"]

[Event "Titled Tuesday Blitz May 9 Early 2023"]
[White "Koridze, Lile"]
[Black "Chemin, Justo Reinaldo"]
[WhiteFideId "13612514"]
[BlackFideId "2101580"]
[WhiteElo "2047"]
[BlackElo "1940"]
[Result "1-0"]
[Round "02"]
[TimeControl "180+2"]
[Date "2023.05.09"]
[WhiteClock "0:00:17"]
[BlackClock "0:00:00"]

1. d4 {[%clk 0:03:00]}  e6 {[%clk 0:02:59]} 2. c4 {[%clk 0:03:01]}  d5 {[%clk 0:02:59]} 3. Nf3 {[%clk 0:03:01]}  c6 {[%clk 0:02:59]} 4. e3 {[%clk 0:03:00]}  Nf6 {[%clk 0:02:59]} 5. Nbd2 {[%clk 0:03:00]}  Nbd7 {[%clk 0:02:59]} 6. Bd3 {[%clk 0:03:00]}  Bd6 {[%clk 0:02:58]} 7. O-O {[%clk 0:02:56]}  Qe7 {[%clk 0:02:58]} 8. a3 {[%clk 0:02:55]}  e5 {[%clk 0:02:57]} 9. dxe5 {[%clk 0:02:45]}  Nxe5 {[%clk 0:02:54]} 10. Nxe5 {[%clk 0:02:46]}  Qxe5 {[%clk 0:02:51]} 11. g3 {[%clk 0:02:43]}  h5 {[%clk 0:02:34]} 12. Nf3 {[%clk 0:02:24]}  Qe7 {[%clk 0:02:31]} 13. Nh4 {[%clk 0:02:02]}  g5 {[%clk 0:02:20]} 14. Nf5 {[%clk 0:02:01]}  Bxf5 {[%clk 0:02:20]} 15. Bxf5 {[%clk 0:02:02]}  dxc4 {[%clk 0:02:13]} 16. e4 {[%clk 0:02:00]}  g4 {[%clk 0:01:49]} 17. Bg5 {[%clk 0:01:48]}  Rg8 {[%clk 0:01:37]} 18. Bh4 {[%clk 0:01:48]}  Qe5 {[%clk 0:01:33]} 19. Qe2 {[%clk 0:01:44]}  b5 {[%clk 0:01:26]} 20. Rad1 {[%clk 0:01:43]}  Nd5 {[%clk 0:01:10]} 21. Rfe1 {[%clk 0:01:10]}  Nb6 {[%clk 0:01:01]} 22. Qd2 {[%clk 0:01:08]}  Bc7 {[%clk 0:00:40]} 23. Bd7+ {[%clk 0:01:05]}  Nxd7 {[%clk 0:00:32]} 24. Qxd7+ {[%clk 0:01:04]}  Kf8 {[%clk 0:00:32]} 25. Qxc6 {[%clk 0:01:00]}  Re8 {[%clk 0:00:18]} 26. Rd7 {[%clk 0:00:53]}  Bb6 {[%clk 0:00:17]} 27. Bf6 {[%clk 0:00:40]}  Qc5 {[%clk 0:00:10]} 28. Qxc5+ {[%clk 0:00:36]}  Bxc5 {[%clk 0:00:09]} 29. Rc7 {[%clk 0:00:31]}  Bb6 {[%clk 0:00:09]} 30. Rd7 {[%clk 0:00:30]}  Rg6 {[%clk 0:00:09]} 31. Bc3 {[%clk 0:00:28]}  Rge6 {[%clk 0:00:09]} 32. e5 {[%clk 0:00:27]}  f6 {[%clk 0:00:06]} 33. Rh7 {[%clk 0:00:23]}  fxe5 {[%clk 0:00:07]} 34. Rxh5 {[%clk 0:00:23]}  e4 {[%clk 0:00:07]} 35. Kg2 {[%clk 0:00:23]}  e3 {[%clk 0:00:07]} 36. fxe3 {[%clk 0:00:22]}  Rxe3 {[%clk 0:00:07]} 37. Rh8+ {[%clk 0:00:18]}  Kf7 {[%clk 0:00:00]} 38. Rf1+ {[%clk 0:00:17]} 1-0


[Site "https://www.chess.com"]

[Event "Titled Tuesday Blitz May 9 Early 2023"]
[White "Ruge, Edison"]
[Black "Garakov, Mikhael"]
[WhiteFideId "4401000"]
[BlackFideId "4169034"]
[WhiteElo "2175"]
[BlackElo "2347"]
[Result "1-0"]
[Round "02"]
[TimeControl "180+2"]
[Date "2023.05.09"]
[WhiteClock "0:01:05"]
[BlackClock "0:00:01"]

1. e4 {[%clk 0:03:00]}  c5 {[%clk 0:02:56]} 2. Nf3 {[%clk 0:03:00]}  e6 {[%clk 0:02:56]} 3. d3 {[%clk 0:03:01]}  Nc6 {[%clk 0:02:55]} 4. Nbd2 {[%clk 0:03:02]}  g6 {[%clk 0:02:54]} 5. g3 {[%clk 0:03:02]}  Bg7 {[%clk 0:02:54]} 6. Bg2 {[%clk 0:03:03]}  d5 {[%clk 0:02:55]} 7. O-O {[%clk 0:03:03]}  Nf6 {[%clk 0:02:54]} 8. Re1 {[%clk 0:03:03]}  O-O {[%clk 0:02:48]} 9. c3 {[%clk 0:03:03]}  a5 {[%clk 0:02:37]} 10. exd5 {[%clk 0:03:02]}  exd5 {[%clk 0:02:34]} 11. Nb3 {[%clk 0:03:01]}  b6 {[%clk 0:02:27]} 12. a4 {[%clk 0:03:01]}  h6 {[%clk 0:02:08]} 13. d4 {[%clk 0:03:01]}  c4 {[%clk 0:02:05]} 14. Nbd2 {[%clk 0:03:00]}  g5 {[%clk 0:01:33]} 15. Nf1 {[%clk 0:03:00]}  Bf5 {[%clk 0:01:26]} 16. h4 {[%clk 0:02:58]}  g4 {[%clk 0:01:24]} 17. Ne5 {[%clk 0:02:58]}  Nxe5 {[%clk 0:01:24]} 18. Rxe5 {[%clk 0:02:57]}  Be4 {[%clk 0:01:20]} 19. Bxe4 {[%clk 0:02:54]}  Nxe4 {[%clk 0:00:59]} 20. Qxg4 {[%clk 0:02:52]}  h5 {[%clk 0:00:39]} 21. Rxh5 {[%clk 0:02:48]}  Nf6 {[%clk 0:00:39]} 22. Qf3 {[%clk 0:02:24]}  Nxh5 {[%clk 0:00:38]} 23. Qxh5 {[%clk 0:02:25]}  f5 {[%clk 0:00:36]} 24. Bf4 {[%clk 0:02:22]}  Qe8 {[%clk 0:00:35]} 25. Qxe8 {[%clk 0:02:07]}  Raxe8 {[%clk 0:00:35]} 26. Ne3 {[%clk 0:02:07]}  Rd8 {[%clk 0:00:28]} 27. Re1 {[%clk 0:02:00]}  Kh7 {[%clk 0:00:28]} 28. Re2 {[%clk 0:01:50]}  Bh6 {[%clk 0:00:27]} 29. Bc7 {[%clk 0:01:49]}  Rd7 {[%clk 0:00:27]} 30. Bxb6 {[%clk 0:01:48]}  f4 {[%clk 0:00:27]} 31. Ng4 {[%clk 0:01:41]}  fxg3 {[%clk 0:00:27]} 32. fxg3 {[%clk 0:01:40]}  Rg7 {[%clk 0:00:27]} 33. Nxh6 {[%clk 0:01:31]}  Rxg3+ {[%clk 0:00:27]} 34. Kh2 {[%clk 0:01:31]}  Rg6 {[%clk 0:00:28]} 35. Bc5 {[%clk 0:01:22]}  Rf4 {[%clk 0:00:27]} 36. Be7 {[%clk 0:01:10]}  Rxh6 {[%clk 0:00:15]} 37. Bg5 {[%clk 0:01:09]}  Rhxh4+ {[%clk 0:00:11]} 38. Bxh4 {[%clk 0:01:08]}  Rxh4+ {[%clk 0:00:12]} 39. Kg3 {[%clk 0:01:09]}  Rh6 {[%clk 0:00:12]} 40. Kf4 {[%clk 0:01:06]}  Kg7 {[%clk 0:00:09]} 41. Ke5 {[%clk 0:01:06]}  Rh5+ {[%clk 0:00:09]} 42. Kd6 {[%clk 0:01:06]}  Kf7 {[%clk 0:00:09]} 43. Kc5 {[%clk 0:01:05]}  Rf5 {[%clk 0:00:06]} 44. Kb5 {[%clk 0:01:05]}  Rf6 {[%clk 0:00:01]} 45. Kxa5 {[%clk 0:01:05]} 1-0


[Site "https://www.chess.com"]

[Event "Titled Tuesday Blitz May 9 Early 2023"]
[White "Larina, Maria"]
[Black "Garagulya, Konstantin"]
[WhiteFideId "24113182"]
[BlackFideId "4128931"]
[WhiteElo "1848"]
[BlackElo "2329"]
[Result "0-1"]
[Round "02"]
[TimeControl "180+2"]
[Date "2023.05.09"]
[WhiteClock "0:00:00"]
[BlackClock "0:00:49"]

1. e4 {[%clk 0:03:00]}  c5 {[%clk 0:02:56]} 2. Nc3 {[%clk 0:03:00]}  a6 {[%clk 0:02:54]} 3. g3 {[%clk 0:02:59]}  b5 {[%clk 0:02:54]} 4. Bg2 {[%clk 0:02:59]}  Bb7 {[%clk 0:02:55]} 5. d3 {[%clk 0:02:56]}  e6 {[%clk 0:02:54]} 6. Nf3 {[%clk 0:02:53]}  d5 {[%clk 0:02:54]} 7. exd5 {[%clk 0:02:53]}  exd5 {[%clk 0:02:54]} 8. d4 {[%clk 0:02:54]}  Nf6 {[%clk 0:02:53]} 9. O-O {[%clk 0:02:53]}  Nbd7 {[%clk 0:02:51]} 10. dxc5 {[%clk 0:02:51]}  Bxc5 {[%clk 0:02:51]} 11. Re1+ {[%clk 0:02:50]}  Be7 {[%clk 0:02:50]} 12. Ne5 {[%clk 0:02:47]}  O-O {[%clk 0:02:48]} 13. Bf4 {[%clk 0:02:31]}  Nb6 {[%clk 0:02:46]} 14. Ne2 {[%clk 0:02:18]}  h6 {[%clk 0:02:40]} 15. Nd4 {[%clk 0:02:16]}  Ne4 {[%clk 0:02:38]} 16. Qg4 {[%clk 0:01:54]}  Nf6 {[%clk 0:02:30]} 17. Qd1 {[%clk 0:01:45]}  Rc8 {[%clk 0:02:30]} 18. c3 {[%clk 0:01:44]}  Re8 {[%clk 0:02:27]} 19. Qd3 {[%clk 0:01:41]}  Nc4 {[%clk 0:02:23]} 20. b3 {[%clk 0:01:35]}  Nd6 {[%clk 0:02:20]} 21. h3 {[%clk 0:01:26]}  Nde4 {[%clk 0:02:19]} 22. Rac1 {[%clk 0:01:19]}  Qa5 {[%clk 0:02:16]} 23. Ne2 {[%clk 0:00:54]}  Bc5 {[%clk 0:01:28]} 24. Rf1 {[%clk 0:00:42]}  Qb6 {[%clk 0:01:27]} 25. Qf3 {[%clk 0:00:36]}  g5 {[%clk 0:01:20]} 26. Ng4 {[%clk 0:00:25]}  Nxg4 {[%clk 0:01:15]} 27. Qxg4 {[%clk 0:00:24]}  Nxf2 {[%clk 0:01:16]} 28. Rxf2 {[%clk 0:00:23]}  Bxf2+ {[%clk 0:01:17]} 29. Kh2 {[%clk 0:00:23]}  Qg6 {[%clk 0:01:15]} 30. Bd2 {[%clk 0:00:18]}  h5 {[%clk 0:01:09]} 31. Qf3 {[%clk 0:00:16]}  Bc5 {[%clk 0:01:07]} 32. Nd4 {[%clk 0:00:14]}  Bxd4 {[%clk 0:01:05]} 33. cxd4 {[%clk 0:00:15]}  Rxc1 {[%clk 0:01:06]} 34. Bxc1 {[%clk 0:00:16]}  f6 {[%clk 0:01:00]} 35. Ba3 {[%clk 0:00:15]}  Kg7 {[%clk 0:00:58]} 36. Bc5 {[%clk 0:00:14]}  Kh6 {[%clk 0:00:58]} 37. h4 {[%clk 0:00:14]}  gxh4 {[%clk 0:00:56]} 38. gxh4 {[%clk 0:00:14]}  Re4 {[%clk 0:00:55]} 39. Bd6 {[%clk 0:00:12]}  Rxh4+ {[%clk 0:00:55]} 40. Bh3 {[%clk 0:00:12]}  Bc8 {[%clk 0:00:50]} 41. Bf4+ {[%clk 0:00:00]}  Kh7 {[%clk 0:00:49]} 0-1


[Site "https://www.chess.com"]